bitfinex/quotes_SOLUSD_20250209
["timestamp","ask_amount","ask_price","bid_price","bid_amount"]
[1739143979684,15.20265589,198.85,198.83,0.063]
[1739143981883,19.22575589,198.85,198.83,0.063]
[1739143982585,15.20265589,198.84,198.83,0.063]
[1739143983775,28.61450442,198.84,198.83,0.063]
[1739143983994,32.63780442,198.84,198.83,0.063]
[1739143984189,20.22595589,198.84,198.81,0.063]
[1739143984484,28.61450442,198.82,198.81,0.063]
[1739143986283,32.63820442,198.82,198.81,0.063]
[1739143986778,28.61450442,198.82,198.81,0.063]
[1739143988783,48.84086031,198.82,198.81,0.063]
[1739143991574,33.63820442,198.82,198.81,0.063]
[1739143992967,13.41184853,198.79,198.77,0.063]
[1739143993168,29.55809447,198.78,198.77,0.063]
[1739143993398,30.55809447,198.78,198.77,0.063]
[1739143993598,29.55809447,198.78,198.77,0.063]
[1739143996082,28.61450442,198.78,198.77,0.063]
[1739143998494,15.20265589,198.78,198.77,0.063]
[1739143998701,15.20265589,198.79,198.77,0.063]
[1739143999209,15.20265589,198.84,198.77,35.26565589]
[1739143999499,15.23265589,198.85,198.78,29.28845589]
[1739143999700,15.23265589,198.85,198.78,14.0858]
[1739144000012,15.20265589,198.83,198.78,14.0858]
[1739144000608,15.23265589,198.85,198.78,14.0858]
[1739144000908,0.03,198.85,198.78,29.28845589]
[1739144001208,0.03,198.85,198.81,20.0]
[1739144001395,0.03,198.85,198.82,4.0237]
[1739144003795,15.23265589,198.85,198.82,4.0237]
[1739144005306,15.20265589,198.84,198.8,4.0241]
[1739144005609,15.20265589,198.83,198.8,4.0241]
[1739144005907,15.20265589,198.84,198.8,4.0241]
[1739144006502,15.23265589,198.85,198.8,4.0241]
[1739144007387,0.03,198.84,198.8,4.0241]
[1739144007703,0.03,198.84,198.8,14.0844]
[1739144009210,0.03,198.84,198.83,24.0235]
[1739144009409,0.03,198.85,198.84,26.1345]
[1739144009591,0.03,198.85,198.84,41.33715589]
[1739144009788,15.20265589,198.92,198.84,41.33715589]
[1739144010185,15.20265589,198.92,198.84,26.1345]
[1739144010389,15.20265589,198.85,198.83,4.0235]
[1739144010616,15.20265589,198.84,198.8,4.0241]
[1739144010792,15.20265589,198.82,198.8,4.0241]
[1739144011293,14.35484874,198.89,198.8,4.0241]
[1739144011294,15.20265589,198.84,198.8,4.0241]
[1739144011499,15.20265589,198.85,198.8,4.0241]
[1739144011900,15.20265589,198.85,198.8,14.0844]
[1739144012417,15.20265589,198.86,198.8,14.0844]
[1739144012887,15.20265589,198.86,198.83,20.0]
[1739144013093,15.20265589,198.87,198.83,20.0]
[1739144013318,15.20265589,198.88,198.84,4.0233]
[1739144014412,15.20265589,198.88,198.84,24.0233]
[1739144015095,15.20265589,198.88,198.84,4.0233]
[1739144015791,15.20265589,198.85,198.79,15.53961169]
[1739144015994,15.20265589,198.8,198.79,7.87371169]
[1739144016186,28.61450442,198.8,198.79,7.87371169]
[1739144016517,28.61450442,198.8,198.78,7.87371169]
[1739144016699,15.20265589,198.79,198.78,7.87371169]
[1739144017331,32.63880442,198.79,198.78,7.87371169]
[1739144018697,28.61450442,198.79,198.78,7.87371169]
[1739144019013,13.41184853,198.78,198.77,0.063]
[1739144019320,15.20265589,198.78,198.77,0.063]
[1739144019507,15.20265589,198.8,198.77,0.063]
[1739144021107,15.23265589,198.81,198.77,0.063]
[1739144021297,15.20265589,198.8,198.77,0.063]
[1739144021797,15.20265589,198.78,198.77,0.063]
[1739144022011,15.20265589,198.79,198.77,0.063]
[1739144022597,15.20265589,198.78,198.77,0.063]
[1739144023495,15.20265589,198.79,198.77,0.063]
[1739144024001,15.20265589,198.8,198.77,0.063]
[1739144024209,0.03,198.81,198.77,0.063]
[1739144025423,15.20265589,198.79,198.77,24.0877]
[1739144026830,0.03,198.81,198.77,24.0877]
[1739144027427,15.23265589,198.81,198.78,20.0]
[1739144028533,15.20265589,198.8,198.78,20.0]
[1739144029015,15.20265589,198.8,198.78,4.0244]
[1739144029222,0.03,198.81,198.78,24.0244]
[1739144029432,15.20265589,198.8,198.78,4.0244]
[1739144030222,15.20265589,198.79,198.78,4.0244]
[1739144030402,15.20265589,198.8,198.77,0.063]
[1739144030609,0.03,198.81,198.77,0.063]
[1739144030825,0.03,198.81,198.78,0.063]
[1739144031514,15.23265589,198.81,198.78,0.063]
[1739144032617,15.20265589,198.79,198.78,0.063]
[1739144034308,15.20265589,198.8,198.78,0.063]
[1739144035340,15.20265589,198.79,198.78,0.063]
[1739144040447,15.20265589,198.8,198.78,0.063]
[1739144041850,0.03,198.81,198.78,0.063]
[1739144042029,0.0001,198.81,198.79,15.20265589]
[1739144042232,0.0001,198.81,198.8,15.20265589]
[1739144042548,0.0001,198.81,198.8,21.48044589]
[1739144043443,0.0001,198.81,198.8,25.50454589]
[1739144043746,0.0001,198.85,198.8,25.63003589]
[1739144043924,0.0001,198.85,198.84,15.20265589]
[1739144045249,0.0001,198.85,198.84,16.93944589]
[1739144045644,0.0001,198.85,198.84,20.96274589]
[1739144045843,0.03,198.92,198.87,20.0]
[1739144046042,0.03,198.92,198.87,35.20265589]
[1739144047538,0.03,198.92,198.88,14.0788]
[1739144047754,0.03,198.92,198.91,20.0]
[1739144048076,15.23265589,198.92,198.88,4.0225]
[1739144048239,15.20265589,198.91,198.88,4.0225]
[1739144049257,15.20265589,198.91,198.85,10.0577]
[1739144049430,15.20265589,198.91,198.85,14.0808]
[1739144051462,15.23265589,198.92,198.89,4.0223]
[1739144051638,15.23265589,198.92,198.89,24.0223]
[1739144051639,0.03,198.92,198.89,24.0223]
[1739144053957,15.20265589,198.9,198.89,4.0223]
[1739144054266,15.20265589,198.9,198.87,24.0225]
[1739144056260,15.23265589,198.91,198.87,24.0225]
[1739144056457,0.03,198.91,198.87,24.0225]
[1739144058342,15.23265589,198.91,198.87,24.0225]
[1739144059169,0.03,198.91,198.87,24.0225]
[1739144065082,0.03,198.91,198.87,34.0793]
[1739144065277,0.03,198.91,198.9,20.0]
[1739144065450,0.03,198.91,198.9,35.20265589]
[1739144065870,0.03,198.91,198.9,20.0]
[1739144066266,0.03,198.91,198.9,24.0221]
[1739144066582,0.03,198.91,198.9,4.0221]
[1739144067778,0.03,198.91,198.87,10.0568]
[1739144069571,15.23265589,198.91,198.87,10.0568]
[1739144071473,15.20265589,198.88,198.85,4.0861]
[1739144071679,0.03,198.91,198.85,4.0861]
[1739144071680,15.20265589,198.86,198.85,4.0861]
[1739144071986,15.20265589,198.86,198.85,0.063]
[1739144072483,15.20265589,198.89,198.85,0.063]
[1739144072785,15.20265589,198.9,198.85,0.063]
[1739144073578,15.20265589,198.89,198.85,0.063]
[1739144074670,0.03,198.91,198.86,20.0]
[1739144074671,15.20265589,198.9,198.86,20.0]
[1739144075073,15.20265589,198.89,198.86,20.0]
[1739144075462,15.20265589,198.89,198.85,20.063]
[1739144076703,15.20265589,198.9,198.85,20.063]
[1739144078467,15.20265589,198.9,198.86,24.0229]
[1739144078968,0.03,198.91,198.86,49.28285589]
[1739144079173,0.03,198.91,198.89,15.20265589]
[1739144079375,0.03,198.91,198.9,15.20265589]
[1739144079992,0.03,198.91,198.89,35.20265589]
[1739144080491,0.03,198.91,198.9,4.0221]
[1739144081791,0.03,198.91,198.9,19.22475589]
[1739144082294,0.03,198.91,198.9,4.0221]
[1739144083195,0.03,198.92,198.9,4.0221]
[1739144086013,0.03,198.94,198.91,15.20265589]
[1739144086186,0.03,198.94,198.93,35.20265589]
[1739144086892,0.03,198.95,198.93,35.20265589]
[1739144087110,0.03,198.95,198.94,15.20265589]
[1739144088103,0.0001,198.95,198.94,19.47493589]
[1739144088306,0.0001,198.97,198.96,20.0]
[1739144088493,0.0001,198.97,198.96,35.20265589]
[1739144088696,0.0001,198.97,198.96,20.0]
[1739144089203,0.0001,198.97,198.96,15.20265589]
[1739144090092,0.0001,198.97,198.96,39.22355589]
[1739144091490,0.0001,198.97,198.96,24.0209]
[1739144092809,0.0001,198.97,198.94,11.89481169]
[1739144094177,0.0001,198.97,198.96,20.0]
[1739144094581,0.0001,198.97,198.96,24.0209]
[1739144097895,0.0001,198.97,198.96,19.22355589]
[1739144099593,0.0001,198.97,198.96,21.13363589]
[1739144100305,13.41184853,199.09,198.99,20.0]
[1739144100306,15.20265589,199.09,198.99,20.0]
[1739144100508,16.84785589,199.1,199.03,15.20265589]
[1739144101010,15.20265589,199.09,199.02,15.20265589]
[1739144101215,0.03,199.12,199.08,20.0]
[1739144101391,0.03,199.12,199.08,15.20265589]
[1739144101585,0.03,199.12,199.09,15.20265589]
[1739144102208,0.03,199.12,199.1,4.018]
[1739144103284,0.03,199.12,199.09,20.0]
[1739144103596,15.23265589,199.12,199.08,20.0]
[1739144104520,0.03,199.12,199.08,20.0]
[1739144104904,0.03,199.12,199.07,4.0186]
[1739144106020,0.03,199.12,199.08,4.0184]
[1739144107016,0.03,199.12,199.06,39.22145589]
[1739144107914,15.23265589,199.12,199.08,20.0]
[1739144108901,15.23265589,199.12,199.08,24.0184]
[1739144109320,15.23265589,199.12,199.08,20.0]
[1739144110016,15.23265589,199.12,199.08,24.0184]
[1739144110720,15.20265589,199.09,199.01,15.20265589]
[1739144111023,15.20265589,199.09,198.95,19.22375589]
[1739144111024,15.20265589,199.02,198.95,19.22375589]
[1739144111235,15.20265589,198.99,198.95,4.0211]
[1739144111434,0.94235616,199.03,198.94,7.87371169]
[1739144111799,15.20265589,198.95,198.94,7.87371169]
[1739144112209,28.61450442,198.95,198.94,7.87371169]
[1739144113021,13.41184853,198.94,198.9,0.063]
[1739144113209,15.20265589,198.91,198.9,0.063]
[1739144113532,28.61450442,198.91,198.9,0.063]
[1739144115625,15.20265589,198.94,198.9,0.063]
[1739144115994,15.20265589,198.93,198.9,0.063]
[1739144116193,15.20265589,198.91,198.9,0.063]
[1739144116910,28.61450442,198.91,198.9,0.063]
[1739144118942,15.20265589,198.91,198.9,0.063]
[1739144119133,15.20265589,198.92,198.9,0.063]
[1739144119325,15.20265589,198.95,198.9,0.063]
[1739144119631,15.20265589,198.96,198.91,20.0]
[1739144119996,6.5822,198.98,198.9,0.063]
[1739144119997,15.20265589,198.97,198.9,0.063]
[1739144120195,15.20265589,198.98,198.91,15.20265589]
[1739144120433,15.20265589,199.02,198.95,15.20265589]
[1739144120728,1.94239143,199.07,198.95,15.20265589]
[1739144120729,15.20265589,199.07,198.99,15.20265589]
[1739144120925,15.20265589,199.07,199.0,15.20265589]
[1739144121112,15.20265589,199.07,199.01,4.0198]
[1739144121314,15.20265589,199.06,199.01,4.0198]
[1739144121739,24.25891793,199.05,199.01,4.0198]
[1739144122837,24.25891793,199.05,198.99,4.0203]
[1739144123041,24.25891793,199.05,198.99,14.071]
[1739144123341,24.28891793,199.09,199.02,44.25891793]
[1739144123518,0.03,199.09,199.03,24.25891793]
[1739144123920,24.25891793,199.08,199.02,20.0]
[1739144124737,24.25891793,199.08,199.03,4.0194]
[1739144125737,24.25891793,199.06,199.03,4.0194]
[1739144126541,24.25891793,199.05,199.03,4.0194]
[1739144127035,24.28891793,199.05,199.03,4.0194]
[1739144127948,0.03,199.05,199.03,4.0194]
[1739144129848,0.03,199.05,199.03,24.0194]
[1739144130227,0.03,199.05,199.04,20.0]
[1739144130553,0.03,199.05,199.03,28.27831793]
[1739144130925,0.03,199.05,199.04,20.0]
[1739144131123,0.03,199.05,199.04,24.0192]
[1739144131446,0.03,199.05,199.04,4.0192]
[1739144132647,0.03,199.05,199.03,20.0]
[1739144133240,0.03,199.05,199.04,20.0]
[1739144134234,0.03,199.05,199.04,24.0192]
[1739144135132,24.28891793,199.09,199.04,24.0192]
[1739144135133,0.03,199.09,199.05,0.2547]
[1739144135355,0.03,199.09,199.07,44.25891793]
[1739144136154,0.03,199.12,199.11,24.0178]
[1739144138255,24.06421793,199.17,199.11,24.0178]
[1739144139449,24.25891793,199.16,199.11,24.0178]
[1739144139647,0.03,199.12,199.11,24.0178]
[1739144140043,24.25891793,199.19,199.11,58.32131793]
[1739144140350,24.25891793,199.19,199.12,24.25891793]
[1739144140554,24.25891793,199.18,199.11,58.32131793]
[1739144141650,15.14359961,199.18,199.11,49.20599961]
[1739144142546,15.14359961,199.19,199.12,15.14359961]
[1739144142754,15.14359961,199.21,199.14,15.14359961]
[1739144143049,15.14359961,199.23,199.16,15.14359961]
[1739144143555,15.14359961,199.22,199.15,15.14359961]
[1739144143930,15.14359961,199.22,199.16,4.0168]
[1739144144132,15.14359961,199.22,199.18,20.0]
[1739144144330,15.14359961,199.23,199.17,15.14359961]
[1739144144529,15.14359961,199.22,199.19,20.0]
[1739144145030,15.14359961,199.23,199.19,20.0]
[1739144145554,15.14359961,199.23,199.18,20.0]
[1739144146548,15.14359961,199.23,199.18,24.0164]
[1739144146751,15.14359961,199.23,199.19,20.0]
[1739144147051,15.14359961,199.21,199.13,19.16099961]
[1739144147256,15.14359961,199.18,199.13,4.0174]
[1739144147557,15.14359961,199.2,199.15,20.0]
[1739144147861,4.0152,199.24,199.14,15.14359961]
[1739144147862,15.14359961,199.21,199.14,15.14359961]
[1739144148064,15.14359961,199.21,199.15,4.017]
[1739144148351,15.14359961,199.18,199.12,1.533]
[1739144148565,15.14359961,199.14,199.1,4.018]
[1739144148744,15.14359961,199.13,199.1,4.018]
[1739144149144,15.14359961,199.13,199.1,24.018]
[1739144149656,15.14359961,199.13,199.11,20.0]
[1739144149827,15.14359961,199.13,199.08,4.0182]
[1739144150228,15.14359961,199.12,199.08,4.0182]
[1739144150757,13.41184853,199.15,199.06,4.0186]
[1739144150758,15.00469961,199.11,199.06,4.0186]
[1739144151155,15.14359961,199.12,199.07,20.0]
[1739144151654,15.14359961,199.11,199.07,20.0]
[1739144151863,15.14359961,199.11,199.07,24.0185]
[1739144152935,0.03,199.13,199.02,4.0196]
[1739144152936,15.14359961,199.08,199.02,4.0196]
[1739144153252,15.14359961,199.05,199.02,4.0196]
[1739144153653,15.14359961,199.09,199.02,19.16319961]
[1739144153851,15.14359961,199.1,199.03,15.14359961]
[1739144154241,15.14359961,199.12,199.04,15.14359961]
[1739144154445,0.03,199.13,199.02,14.0688]
[1739144154446,15.17359961,199.13,199.07,20.0]
[1739144155468,0.03,199.13,199.07,15.14359961]
[1739144155950,0.03,199.13,199.08,4.0184]
[1739144157049,0.03,199.13,199.08,14.0646]
[1739144158068,0.03,199.13,199.08,38.30342126]
[1739144158245,0.03,199.13,199.09,24.23882126]
[1739144158765,0.03,199.13,199.08,38.30342126]
[1739144159065,0.03,199.13,199.1,24.23882126]
[1739144159551,0.03,199.13,199.11,44.23882126]
[1739144160072,0.03,199.13,199.11,20.0]
[1739144160558,0.03,199.13,199.12,4.0176]
[1739144161568,24.26882126,199.13,199.06,4.0188]
[1739144161750,24.23882126,199.11,199.06,4.0188]
[1739144162075,24.23882126,199.11,199.07,20.0]
[1739144162260,24.26882126,199.13,199.07,20.0]
[1739144162446,0.03,199.13,199.09,24.23882126]
[1739144162647,0.03,199.13,199.09,34.28422126]
[1739144162955,0.03,199.13,199.11,20.0]
[1739144163356,0.03,199.13,199.11,24.30182126]
[1739144163553,0.03,199.13,199.11,0.063]
[1739144164170,0.03,199.13,199.12,20.0]
[1739144164752,0.03,199.13,199.12,4.0176]
[1739144167565,24.23882126,199.2,199.12,58.30052126]
[1739144167751,24.23882126,199.2,199.13,24.23882126]
[1739144169171,24.23882126,199.21,199.14,38.29912126]
[1739144169362,24.23882126,199.22,199.14,38.29912126]
[1739144170178,24.23882126,199.21,199.14,38.29912126]
[1739144170960,24.23882126,199.22,199.17,20.0]
[1739144171358,24.23882126,199.22,199.18,4.0164]
[1739144171973,24.26882126,199.23,199.18,4.0164]
[1739144173984,24.23882126,199.22,199.18,4.0164]
[1739144174164,24.23882126,199.19,199.17,20.0]
[1739144174355,24.23882126,199.18,199.16,24.0166]
[1739144175066,24.23882126,199.17,199.14,4.0171]
[1739144176086,24.26882126,199.17,199.14,4.0171]
[1739144177887,0.03,199.17,199.14,4.0171]
[1739144184665,0.03,199.17,199.15,15.14251272]
[1739144185082,0.03,199.23,199.16,35.14251272]
[1739144185276,0.03,199.23,199.17,35.14251272]
[1739144186090,0.03,199.23,199.18,14.0575]
[1739144186281,0.03,199.23,199.18,29.20001272]
[1739144187993,0.03,199.23,199.22,20.0]
[1739144188203,15.14251272,199.35,199.27,20.0]
[1739144188377,15.14251272,199.36,199.29,15.14251272]
[1739144189382,15.14251272,199.33,199.27,35.14251272]
[1739144189687,15.14251272,199.33,199.27,20.0]
[1739144189881,15.14251272,199.33,199.27,35.14251272]
[1739144190085,15.14251272,199.34,199.27,35.14251272]
[1739144190287,15.14251272,199.34,199.28,14.0505]
[1739144190502,15.14251272,199.36,199.29,15.14251272]
[1739144192086,15.14251272,199.35,199.29,15.14251272]
[1739144192306,15.14251272,199.35,199.28,29.19301272]
[1739144192892,15.14251272,199.35,199.29,15.14251272]
[1739144194200,15.14251272,199.35,199.28,29.19301272]
[1739144195984,15.14251272,199.35,199.3,4.014]
[1739144196296,15.14251272,199.36,199.3,19.15651272]
[1739144196698,15.14251272,199.36,199.3,4.014]
[1739144199599,0.94060379,199.41,199.35,15.14251272]
[1739144199798,15.14251272,199.5,199.4,16.68901272]
[1739144200011,15.14251272,199.5,199.42,15.14251272]
[1739144200187,15.14251272,199.49,199.42,15.14251272]
[1739144200510,1.96997046,199.56,199.41,4.0118]
[1739144200511,15.14251272,199.46,199.41,4.0118]
[1739144200687,1.5227,199.53,199.41,4.0118]
[1739144200688,13.41184853,199.51,199.41,4.0118]
[1739144200885,13.41184853,199.51,199.41,14.0413]
[1739144201383,15.14251272,199.48,199.41,14.0413]
[1739144201705,15.14251272,199.46,199.41,4.0118]
[1739144202207,15.14251272,199.45,199.41,4.0118]
[1739144202886,15.14251272,199.46,199.41,4.0118]
[1739144203086,15.14251272,199.47,199.41,4.0118]
[1739144204482,15.14251272,199.47,199.41,14.0413]
[1739144204679,15.14251272,199.54,199.46,15.14251272]
[1739144204883,0.03,199.56,199.51,15.14251272]
[1739144205083,0.03,199.56,199.47,0.12549]
[1739144205084,0.03,199.56,199.47,1.12549]
[1739144205693,0.03,199.56,199.5,24.12826766]
[1739144206101,0.03,199.56,199.5,44.12826766]
[1739144206609,0.03,199.56,199.51,24.12826766]
[1739144206904,0.03,199.56,199.52,24.12826766]
[1739144207910,0.03,199.56,199.53,4.0094]
[1739144208503,0.03,199.56,199.54,24.12826766]
[1739144208701,0.03,199.56,199.55,24.12826766]
[1739144209712,24.12826766,199.72,199.59,0.25098]
[1739144209912,24.12826766,199.74,199.67,24.12826766]
[1739144210210,13.41184853,199.75,199.63,20.0]
[1739144210423,13.41184853,199.73,199.63,20.0]
[1739144211407,24.12826766,199.66,199.6,4.008]
[1739144211608,24.12826766,199.65,199.58,24.12826766]
[1739144211802,24.12826766,199.64,199.57,28.13686766]
[1739144212294,24.12826766,199.63,199.56,25.67476766]
[1739144212500,24.12826766,199.6,199.53,88.47646766]
[1739144212896,24.12826766,199.63,199.56,24.12826766]
[1739144213600,24.12826766,199.62,199.55,24.12826766]
[1739144213992,24.12826766,199.67,199.6,24.12826766]
[1739144214197,24.12826766,199.68,199.61,24.12826766]
[1739144214397,24.12826766,199.69,199.62,24.12826766]
[1739144215810,24.12826766,199.7,199.63,24.12826766]
[1739144216216,24.12826766,199.69,199.62,28.13566766]
[1739144216399,24.12826766,199.71,199.64,24.12826766]
[1739144216599,24.12826766,199.72,199.65,24.12826766]
[1739144217303,24.12826766,199.73,199.66,24.12826766]
[1739144217695,24.12826766,199.72,199.65,24.12826766]
[1739144217920,24.12826766,199.66,199.6,1.5663]
[1739144218117,24.12826766,199.65,199.6,5.5742]
[1739144218418,4.0065,199.68,199.6,5.5742]
[1739144218419,24.12826766,199.66,199.6,5.5742]
[1739144218618,24.12826766,199.68,199.6,29.70246766]
[1739144218818,24.12826766,199.69,199.62,24.12826766]
[1739144219831,24.12826766,199.69,199.63,4.0074]
[1739144220236,24.12826766,199.68,199.62,4.0075]
[1739144220441,24.12826766,199.65,199.6,5.5742]
[1739144220904,24.12826766,199.67,199.6,5.5742]
[1739144221513,24.12826766,199.66,199.6,5.5742]
[1739144221918,24.12826766,199.61,199.57,4.0085]
[1739144222142,24.12826766,199.59,199.55,1.5663]
[1739144222340,24.12826766,199.57,199.53,64.3481]
[1739144222838,24.12826766,199.57,199.53,54.18]
[1739144223044,24.12826766,199.54,199.53,54.18]
[1739144224014,28.13746766,199.54,199.45,4.0109]
[1739144224219,24.12826766,199.49,199.45,4.0109]
[1739144224528,24.12826766,199.49,199.43,4.0112]
[1739144224739,24.12826766,199.47,199.42,6.3557]
[1739144225117,24.12826766,199.47,199.41,4.0116]
[1739144225634,24.12826766,199.46,199.39,1.5663]
[1739144225831,24.12826766,199.45,199.39,5.5783]
[1739144226025,24.12826766,199.44,199.39,5.5783]
[1739144226837,24.12826766,199.43,199.39,4.012]
[1739144227523,24.12826766,199.43,199.37,6.3557]
[1739144227729,24.12826766,199.43,199.39,20.0]
[1739144227922,24.12826766,199.44,199.39,20.0]
[1739144228327,24.12826766,199.43,199.39,20.0]
[1739144228638,24.12826766,199.43,199.39,24.012]
[1739144229028,24.12826766,199.45,199.39,4.012]
[1739144229327,24.12826766,199.47,199.39,28.14026766]
[1739144229516,24.12826766,199.47,199.4,24.12826766]
[1739144230428,24.12826766,199.47,199.41,4.0118]
[1739144230928,24.12826766,199.49,199.42,24.12826766]
[1739144231134,24.12826766,199.48,199.41,28.14006766]
[1739144231440,24.12826766,199.43,199.39,4.012]
[1739144231739,24.12826766,199.47,199.39,14.0425]
[1739144231931,24.12826766,199.46,199.39,38.17076766]
[1739144232137,24.12826766,199.45,199.39,14.0425]
[1739144232324,24.12826766,199.43,199.39,4.012]
[1739144232740,24.12826766,199.43,199.35,24.12826766]
[1739144233035,24.12826766,199.43,199.36,4.0128]
[1739144235637,24.12826766,199.42,199.36,4.0128]
[1739144236922,24.12826766,199.43,199.36,4.0128]
[1739144237835,24.12826766,199.39,199.35,4.013]
[1739144238929,24.12826766,199.4,199.35,4.013]
[1739144239129,24.12826766,199.41,199.35,4.013]
[1739144241127,24.12826766,199.47,199.4,24.12826766]
[1739144242222,24.12826766,199.47,199.41,4.0118]
[1739144243223,24.12826766,199.46,199.4,4.012]
[1739144244431,24.12826766,199.45,199.4,4.012]
[1739144244850,24.12826766,199.42,199.35,38.17376766]
[1739144245055,24.12826766,199.41,199.35,14.0455]
[1739144245463,24.12826766,199.42,199.36,24.12826766]
[1739144245625,24.12826766,199.44,199.37,24.12826766]
[1739144246323,24.12826766,199.43,199.36,24.12826766]
[1739144246739,24.12826766,199.43,199.37,4.0126]
[1739144247427,24.12826766,199.42,199.37,4.0126]
[1739144248247,24.12826766,199.41,199.37,4.0126]
[1739144248560,24.12826766,199.4,199.37,4.0126]
[1739144248733,24.12826766,199.38,199.34,54.16]
[1739144249064,24.12826766,199.35,199.34,54.16]
[1739144249352,24.12826766,199.39,199.34,58.1732]
[1739144249556,1.0,199.46,199.34,58.1732]
[1739144249557,0.9405174,199.43,199.34,82.30146766]
[1739144249859,24.12826766,199.4,199.34,58.1732]
[1739144250760,24.12826766,199.41,199.34,58.1732]
[1739144250951,18.55248621,199.49,199.35,24.12826766]
[1739144250952,24.12826766,199.43,199.35,24.12826766]
[1739144251152,24.12826766,199.45,199.37,24.12826766]
[1739144251360,24.12826766,199.46,199.38,24.12826766]
[1739144251851,11.29590493,199.52,199.4,24.12826766]
[1739144251852,24.12826766,199.48,199.4,24.12826766]
[1739144252055,24.12826766,199.48,199.41,24.12826766]
[1739144252872,24.12826766,199.48,199.4,28.14026766]
[1739144254098,24.12826766,199.48,199.4,38.17026766]
[1739144254276,24.12826766,199.48,199.41,24.12826766]
[1739144254980,24.12826766,199.5,199.41,24.12826766]
[1739144255472,24.12826766,199.5,199.43,44.12826766]
[1739144255774,0.03,199.52,199.44,24.12826766]
[1739144255775,24.15826766,199.52,199.44,24.12826766]
[1739144256161,24.15826766,199.52,199.45,4.011]
[1739144256481,24.15826766,199.52,199.45,28.13926766]
[1739144257055,24.15826766,199.52,199.45,38.16676766]
[1739144257472,24.12826766,199.5,199.45,4.011]
[1739144258375,24.12826766,199.5,199.43,44.12826766]
[1739144258555,24.12826766,199.51,199.44,4.0112]
[1739144258878,24.12826766,199.51,199.44,28.13946766]
[1739144261283,0.03,199.52,199.46,30.37016766]
[1739144261671,0.03,199.52,199.46,21.33240033]
[1739144262056,0.03,199.52,199.48,15.09050033]
[1739144262258,0.03,199.52,199.5,15.09050033]
[1739144262759,0.03,199.52,199.51,4.0098]
[1739144264262,0.03,199.52,199.48,4.0104]
[1739144264463,15.09050033,199.51,199.48,4.0104]
[1739144264764,15.09050033,199.51,199.47,1.5745]
[1739144265084,15.09050033,199.51,199.47,5.5851]
[1739144266689,15.09050033,199.5,199.47,5.5851]
[1739144266989,15.09050033,199.49,199.47,5.5851]
[1739144267788,24.15220638,199.5,199.47,5.5851]
[1739144268972,24.15220638,199.51,199.47,5.5851]
[1739144269285,0.03,199.52,199.47,39.76380638]
[1739144270387,0.03,199.52,199.48,24.15220638]
[1739144270575,0.03,199.52,199.49,4.0102]
[1739144270772,0.03,199.52,199.49,28.16240638]
[1739144271089,0.03,199.52,199.51,24.15220638]
[1739144271680,0.03,199.52,199.5,24.15220638]
[1739144272493,0.03,199.52,199.51,4.0098]
[1739144273893,0.03,199.52,199.49,4.01]
[1739144274391,0.03,199.52,199.48,4.0104]
[1739144274569,0.03,199.52,199.48,28.16260638]
[1739144276090,0.03,199.52,199.48,4.0104]
[1739144276790,0.03,199.52,199.48,38.18860638]
[1739144277091,0.03,199.52,199.49,24.15220638]
[1739144277680,0.03,199.52,199.48,38.18860638]
[1739144278388,0.03,199.52,199.49,24.15220638]
[1739144278601,0.03,199.52,199.5,4.01]
[1739144280994,0.03,199.52,199.48,34.17820638]
[1739144281289,0.03,199.52,199.48,38.18860638]
[1739144281680,0.03,199.52,199.48,4.0104]
[1739144281883,24.18220638,199.52,199.48,4.0104]
[1739144282299,0.03,199.52,199.48,4.0104]
[1739144283201,0.03,199.52,199.49,24.15220638]
[1739144283372,0.03,199.52,199.48,38.18860638]
[1739144284802,0.03,199.52,199.48,14.0364]
[1739144285397,0.03,199.52,199.48,14.0994]
[1739144285980,0.03,199.52,199.48,38.25160638]